fUSD/lending_fUSD_20251117
["ID","MTS","AMOUNT","RATE_DAILY","PERIOD"]
[394199431,1763371872132,-300.0,0.00041096,30]
[394199432,1763371872145,-300.0,0.00041096,30]
[394199433,1763371872157,-300.0,0.00041096,30]
[394199434,1763371872170,-300.0,0.00041096,30]
[394199435,1763371872183,-300.0,0.00041096,30]
[394199436,1763371872195,-500.0,0.00041096,2]
[394199437,1763371872207,-500.0,0.00041096,2]
[394199438,1763371872220,-500.0,0.00041096,2]
[394199439,1763371872234,-500.0,0.00041096,2]
[394199440,1763371872249,-500.0,0.00041096,2]
[394199441,1763371872263,-500.0,0.00041096,2]
[394199442,1763371872278,-500.0,0.00041096,2]
[394199443,1763371872291,-500.0,0.00041096,2]
[394199444,1763371872303,-500.0,0.00041096,2]
[394199445,1763371872316,-500.0,0.00041096,2]
[394199446,1763371872328,-500.0,0.00041096,2]
[394199447,1763371872340,-277.13877886,0.00041096,2]
[394199448,1763371872352,-500.0,0.00041096,2]
[394199449,1763371872364,-500.0,0.00041096,2]
[394199450,1763371872377,-500.0,0.00041096,2]
[394199451,1763371872389,-500.0,0.00041096,2]
[394199452,1763371872403,-203.48098377,0.00041096,2]
[394199453,1763371872416,-150.0,0.00041096,2]
[394199454,1763371872429,-500.0,0.00041096,2]
[394199455,1763371872445,-500.0,0.00041096,2]
[394199456,1763371872457,-500.0,0.00041096,2]
[394199457,1763371872469,-500.0,0.00041096,2]
[394199458,1763371872483,-500.0,0.00041096,2]
[394199459,1763371872495,-362.21903355,0.00041096,2]
[394199460,1763371872508,-150.0,0.00041096,2]
[394199461,1763371872521,-500.0,0.00041096,2]
[394199462,1763371872534,-500.0,0.00041096,2]
[394199463,1763371872547,-500.0,0.00041096,2]
[394199464,1763371872559,-632.32580417,0.00041096,2]
[394199465,1763371872572,-500.0,0.00041096,2]
[394199466,1763371872584,-500.0,0.00041096,2]
[394199467,1763371872597,-500.0,0.00041096,2]
[394199468,1763371872609,-500.0,0.00041096,2]
[394199469,1763371872622,-500.0,0.00041096,2]
[394199470,1763371872634,-500.0,0.00041096,2]
[394199471,1763371872646,-500.0,0.00041096,2]
[394199472,1763371872658,-500.0,0.00041096,2]
[394199473,1763371872671,-634.0,0.00041096,2]
[394199474,1763371872683,-150.0,0.00041096,2]
[394199475,1763371872695,-150.0,0.00041096,2]
[394199476,1763371872707,-250.0,0.00041096,2]
[394199477,1763371872720,-150.0,0.00041096,2]
[394199478,1763371872732,-808.0,0.00041096,2]
[394199479,1763371872748,-808.0,0.00041096,2]
[394199480,1763371872760,-808.0,0.00041096,2]
[394199481,1763371872773,-808.0,0.00041096,2]
[394199482,1763371872785,-808.0,0.00041096,2]
[394199483,1763371872798,-808.0,0.00041096,2]
[394199484,1763371872810,-808.0,0.00041096,2]
[394199485,1763371872823,-808.0,0.00041096,2]
[394199486,1763371872835,-808.0,0.00041096,2]
[394199487,1763371872847,-808.0,0.00041096,2]
[394199488,1763371872859,-808.0,0.00041096,2]
[394199489,1763371872871,-808.0,0.00041096,2]
[394199490,1763371872883,-808.0,0.00041096,2]
[394199491,1763371872896,-808.0,0.00041096,2]
[394199492,1763371872908,-808.0,0.00041096,2]
[394199493,1763371872920,-808.0,0.00041096,2]
[394199494,1763371872935,-808.0,0.00041096,2]
[394199495,1763371872947,-808.0,0.00041096,2]
[394199496,1763371872959,-808.0,0.00041096,2]
[394199497,1763371872971,-808.0,0.00041096,2]
[394199498,1763371872984,-808.0,0.00041096,2]
[394199499,1763371872997,-808.0,0.00041096,2]
[394199500,1763371873009,-808.0,0.00041096,2]
[394199501,1763371873021,-815.55712581,0.00041096,2]
[394199502,1763371873033,-500.0,0.00041096,2]
[394199503,1763371873045,-500.0,0.00041096,2]
[394199504,1763371873058,-500.0,0.00041096,2]
[394199505,1763371873070,-500.0,0.00041096,2]
[394199506,1763371873081,-500.0,0.00041096,2]
[394199507,1763371873094,-150.0,0.00041096,2]
[394199508,1763371873106,-500.0,0.00041096,2]
[394199509,1763371873118,-500.0,0.00041096,2]
[394199510,1763371873130,-500.0,0.00041096,2]
[394199511,1763371873143,-313.05278908,0.00041096,2]
[394199512,1763371873155,-500.0,0.00041096,2]
[394199513,1763371873167,-500.0,0.00041096,2]
[394199514,1763371873179,-500.0,0.00041096,2]
[394199515,1763371873192,-500.0,0.00041096,2]
[394199516,1763371873204,-500.0,0.00041096,2]
[394199517,1763371873216,-500.0,0.00041096,2]
[394199518,1763371873229,-500.0,0.00041096,2]
[394199519,1763371873242,-500.0,0.00041096,2]
[394199520,1763371873254,-500.0,0.00041096,2]
[394199521,1763371873526,-500.0,0.00041096,2]
[394199522,1763371873554,-500.0,0.00041096,2]
[394199523,1763371873569,-500.0,0.00041096,2]
[394199524,1763371873579,-357.85450408,0.00041096,2]
[394199525,1763371873589,-500.0,0.00041096,2]
[394199526,1763371873599,-500.0,0.00041096,2]
[394199527,1763371873608,-500.0,0.00041096,2]
[394199528,1763371873620,-269.39951216,0.00041096,2]
[394199529,1763371873629,-155.23138572,0.00041096,2]
[394199530,1763371873638,-500.0,0.00041096,2]
[394199531,1763371873650,-500.0,0.00041096,2]
[394199532,1763371873662,-500.0,0.00041096,2]
[394199533,1763371873671,-202.8242383,0.00041096,2]
[394199534,1763371873680,-500.0,0.00041096,2]
[394199535,1763371873689,-500.0,0.00041096,2]
[394199536,1763371873699,-500.0,0.00041096,2]
[394199537,1763371873708,-500.0,0.00041096,2]
[394199538,1763371873717,-500.0,0.00041096,2]
[394199539,1763371873727,-500.0,0.00041096,2]
[394199540,1763371873739,-500.0,0.00041096,2]
[394199541,1763371873748,-500.0,0.00041096,2]
[394199542,1763371873758,-500.0,0.00041096,2]
[394199543,1763371873767,-500.0,0.00041096,2]
[394199544,1763371873778,-500.0,0.00041096,2]
[394199545,1763371873788,-428.46521402,0.00041096,2]
[394199546,1763371873798,-4195.8835655,0.000411,60]
[394199547,1763371873808,-536.0,0.000411,2]
[394199548,1763371873818,-5800.0,0.00041142,14]
[394199549,1763371873827,-5800.0,0.00041151,14]
[394199550,1763371873837,-5800.0,0.00041159,14]
[394199551,1763371873846,-5800.0,0.00041168,14]
[394199552,1763371873855,-5800.0,0.00041176,14]
[394199553,1763371873874,-150.0,0.00041194,60]
[394199554,1763371873887,-150.0,0.00041194,60]
[394199555,1763371873896,-2174.83280904,0.0004123,5]
[394199556,1763371873906,-550.64597,0.00041288,30]
[394199557,1763371873916,-534.55782008,0.0004133,120]
[394199558,1763371873926,-250.0,0.00041333,120]
[394199559,1763371873935,-374.58708372,0.0004134,3]
[394199560,1763371873945,-1000.0,0.0004137,14]
[394199561,1763371873955,-216.1,0.000414,29]
[394199562,1763371873965,-267.46074303,0.00041436,45]
[394199563,1763371873975,-257.91778498,0.00041437,45]
[394199564,1763371873985,-248.71531821,0.00041438,30]
[394199565,1763371873997,-1000.0,0.00041438,120]
[394199566,1763371874007,-1000.0,0.00041438,120]
[394199567,1763371874017,-1000.0,0.00041438,120]
[394199568,1763371874027,-1000.0,0.00041438,120]
[394199569,1763371874037,-1000.0,0.00041438,120]
[394199570,1763371874046,-1000.0,0.00041438,120]
[394199571,1763371874056,-1000.0,0.00041438,120]
[394199572,1763371874065,-894.30395065,0.00041438,120]
[394199573,1763371874075,-2000.0,0.00041439,10]
[394199574,1763371874085,-8216142.48046874,0.0004144,2]
[394199575,1763371874094,-349949.42262995,0.0004144,2]
[394199576,1763371874104,-157807.21214277,0.0004144,30]
[394199577,1763371874113,-150.0,0.0004144,30]
[394199578,1763371874123,-208.74426888,0.0004144,30]
[394199579,1763371874133,-418.81775602,0.0004144,30]
[394199580,1763371874143,-306.47422924,0.0004144,30]
[394199581,1763371874152,-150.0,0.0004144,30]
[394199582,1763371874162,-485.42272308,0.0004144,30]
[394199583,1763371874171,-150.0,0.0004144,30]
[394199584,1763371874181,-287.68104243,0.0004144,30]
[394199585,1763371874190,-251.76897403,0.0004144,30]
[394199586,1763371874200,-239.70625003,0.0004144,30]
[394199587,1763371874210,-150.0,0.0004144,30]
[394199588,1763371874220,-150.0,0.0004144,30]
[394199589,1763371874234,-150.0,0.0004144,30]
[394199590,1763371874245,-150.0,0.0004144,30]
[394199591,1763371874255,-150.0,0.0004144,30]
[394199592,1763371874265,-150.0,0.0004144,30]
[394199593,1763371874275,-150.0,0.0004144,30]
[394199594,1763371874284,-152.02,0.00041446,120]
[394199595,1763371874294,-239.84119403,0.00041447,30]
[394199596,1763371874304,-2000.0,0.0004145,3]
[394199597,1763371874314,-1376.0,0.00041467,30]
[394199598,1763371874324,-157807.21214277,0.00041467,30]
[394199599,1763371874334,-157807.21214277,0.00041467,30]
[394199600,1763371874343,-299.28160446,0.00041467,30]
[394199601,1763371874353,-391.82790604,0.0004147,120]
[394199602,1763371874362,-209.7387154,0.00041473,120]
[394199603,1763371874372,-206.83138345,0.00041473,120]
[394199604,1763371874381,-209.7387154,0.00041473,120]
[394199605,1763371874391,-246.52635032,0.00041473,120]
[394199606,1763371874401,-252.08999225,0.00041473,120]
[394199607,1763371874410,-152.48,0.00041484,120]
[394199608,1763371874425,-231.28369723,0.00041487,30]
[394199609,1763371874439,-550.64597,0.00041488,30]
[394199610,1763371874450,-200.0,0.0004152,120]
[394199611,1763371874460,-208.74426888,0.00041526,30]
[394199612,1763371874470,-418.81775602,0.00041526,30]
[394199613,1763371874481,-306.47422924,0.00041526,30]
[394199614,1763371874492,-485.42272308,0.00041526,30]
[394199615,1763371874502,-287.68104243,0.00041526,30]
[394199616,1763371874513,-251.76897403,0.00041526,30]
[394199617,1763371874523,-239.70625003,0.00041526,30]
[394199618,1763371874533,-416.78,0.00041545,30]
[394199619,1763371874543,-416.78,0.00041545,30]
[394199620,1763371874554,-152.02,0.00041546,120]
[394199621,1763371874564,-150.0,0.00041551,30]
[394199622,1763371874574,-150.0,0.0004157,30]
[394199623,1763371874584,-152.48,0.00041584,120]
[394199624,1763371874594,-1865.72,0.000416,120]
[394199625,1763371874604,-1865.72,0.000416,120]
[394199626,1763371874614,-1865.72,0.000416,120]
[394199627,1763371874628,-208.74426888,0.00041613,30]
[394199628,1763371874638,-418.81775602,0.00041613,30]
[394199629,1763371874648,-306.47422924,0.00041613,30]
[394199630,1763371874658,-485.42272308,0.00041613,30]
[394199631,1763371874668,-287.68104243,0.00041613,30]
[394199632,1763371874678,-251.76897403,0.00041613,30]
[394199633,1763371874689,-239.70625003,0.00041613,30]
[394199634,1763371874699,-500.0,0.00041635,60]
[394199635,1763371874708,-500.0,0.00041643,2]
[394199636,1763371874718,-1000.0,0.00041643,2]
[394199637,1763371874728,-1000.0,0.00041644,14]
[394199638,1763371874740,-152.02,0.00041646,120]
[394199639,1763371874750,-150.0,0.00041648,30]
[394199640,1763371874761,-150.0,0.00041653,120]
[394199641,1763371874773,-150.0,0.00041662,30]
[394199642,1763371874784,-150.0,0.00041664,120]
[394199643,1763371874795,-150.0,0.00041671,30]
[394199644,1763371874805,-152.48,0.00041684,120]
[394199645,1763371874814,-550.64597,0.00041688,30]
[394199646,1763371874829,-3212.57219419,0.0004169,120]
[394199647,1763371874839,-152.0,0.00041691,10]
[394199648,1763371874849,-208.74426888,0.00041699,30]
[394199649,1763371874859,-418.81775602,0.00041699,30]
[394199650,1763371874870,-306.47422924,0.00041699,30]
[394199651,1763371874880,-485.42272308,0.00041699,30]
[394199652,1763371874891,-287.68104243,0.00041699,30]
[394199653,1763371874901,-251.76897403,0.00041699,30]
[394199654,1763371874912,-239.70625003,0.00041699,30]
[394199655,1763371874924,-150.0,0.00041699,30]
[394199656,1763371874934,-150.0,0.000417,2]
[394199657,1763371874944,-150.0,0.000417,2]
[394199658,1763371874954,-192.51847776,0.000417,2]
[394199659,1763371874964,-150.0,0.00041704,120]
[394199660,1763371874976,-50000.0,0.00041706,30]
[394199661,1763371874987,-50000.0,0.00041706,31]
[394199662,1763371874998,-50000.0,0.00041706,32]
[394199663,1763371875007,-50000.0,0.00041706,33]
[394199664,1763371875017,-50000.0,0.00041706,34]
[394199665,1763371875032,-534387.48257284,0.00041707,7]
[394199666,1763371875043,-57856.81637931,0.00041707,7]
[394199667,1763371884497,-327.59128721,0.00017,6]
[394199668,1763371886863,-172.40871279,0.00017,6]
[394199669,1763371886891,-4137.19257442,0.000171,5]
[394199670,1763371886968,-1380.80742558,0.000171,5]
[394199671,1763371886995,-1000.0,0.000171,6]
[394199672,1763371887022,-1500.0,0.000172,6]
[394199673,1763371887050,-238.39514884,0.000173,6]
[394199674,1763371887093,-1761.60485116,0.000173,6]
[394199675,1763371887120,-2500.0,0.000174,6]
[394199676,1763371891947,-164.45111303,0.000175,6]
[394199677,1763371893601,-277.40507897,0.000175,6]
[394199678,1763371897816,-58.143808,0.000175,6]
[394199679,1763371897839,-183.41808119,0.000176,6]
[394199680,1763371900586,-268.73933241,0.000176,6]
[394199681,1763371902184,-47.8425864,0.000176,6]
[394199682,1763371902207,-160.12630562,0.000177,6]
[394199683,1763371905356,-339.87369438,0.000177,6]
[394199684,1763371921487,-166.65807418,0.000178,6]
[394199685,1763371925794,-277.89872544,0.000178,6]
[394199686,1763371928727,3483.32251969,0.000178,2]
[394199692,1763372369589,358.95,0.00013699,2]
[394199700,1763372537082,20000.0,0.00022,60]
[394199713,1763372724182,-1028.9,0.000179,2]
[394199947,1763372863020,158.42,0.00014426,2]
[394199948,1763372863224,158.42,0.00015628,2]
[394199949,1763372863459,158.42,0.0001683,2]
[394200012,1763373032244,-608.310814,0.00018,2]
[394200013,1763373032253,-420.589186,0.00018,2]
[394200014,1763373032310,-884.804903,0.00018,2]
[394200015,1763373032319,-551.940163,0.00018,2]
[394200016,1763373032329,-388.31850938,0.00018,2]
[394200017,1763373032385,-1048.30109769,0.00018,2]
[394200018,1763373032396,-51.54922193,0.00018,2]
[394200019,1763373032406,-158.42,0.00018032,2]
[394200020,1763373032415,-158.42,0.00019234,2]
[394200021,1763373032425,-195.0,0.0001958,2]
[394200022,1763373032433,-202.83862469,0.0001958,2]
[394200023,1763373032453,-47.16137531,0.0001958,2]
[394200024,1763373032463,-342.97092283,0.0001958,2]
[394200025,1763373032473,-358.95,0.00020187,2]
[394200026,1763373032483,-158.42,0.00020436,2]
[394200027,1763373032493,-158.42,0.00021639,2]
[394200028,1763373032503,-151.0,0.00022,2]
[394200029,1763373032514,-158.42,0.00022841,2]
[394200030,1763373032524,-479.1746172,0.00023056,2]
[394200031,1763373032534,-608.310814,0.0002386,2]
[394200033,1763373032544,-1305.394089,0.0002386,2]
[394200036,1763373032553,-551.940163,0.0002386,2]
[394200038,1763373032562,-1488.168829,0.0002386,2]
[394200040,1763373032572,-151.0,0.0002386,2]
[394200041,1763373032581,-151.0,0.0002386,2]
[394200042,1763373032590,-150.99,0.0002386,2]
[394200043,1763373032600,-286.52,0.0002386,2]
[394200044,1763373032609,-299.99,0.0002386,7]
[394200045,1763373032618,-158.42,0.00024043,2]
[394200046,1763373032628,-151.0,0.000248,2]
[394200047,1763373032637,-608.310814,0.000249,3]
[394200048,1763373032646,-1305.394089,0.000249,3]
[394200049,1763373032656,-551.940163,0.000249,3]
[394200050,1763373032665,-1488.168829,0.000249,3]
[394200051,1763373032675,-151.0,0.00025,2]
[394200052,1763373032684,-168.0,0.00025219,2]
[394200053,1763373032694,-158.42,0.00025245,2]
[394200054,1763373032704,-168.0,0.00025296,2]
[394200055,1763373032713,-997.34889877,0.00025438,2]
[394200056,1763373032769,-320.65110123,0.00025438,2]
[394200057,1763373032779,-31.30792781,0.00025438,2]
[394200175,1763373040228,-453.364919,0.00025438,2]
[394200524,1763373046473,-2946.32715319,0.00025438,2]
[394200525,1763373046483,-560.0,0.00025438,2]
[394200526,1763373046493,-705.0,0.00025438,2]
[394200527,1763373046502,-6489.0,0.00025438,2]
[394200528,1763373046512,-1604.0,0.00025438,2]
[394200529,1763373046521,-158.42,0.00026447,2]
[394200530,1763373046531,-358.95,0.00026676,2]
[394200531,1763373046540,-168.0,0.00026687,2]
[394200532,1763373046550,-168.0,0.00026979,2]
[394200533,1763373046559,-158.42,0.00027649,2]
[394200534,1763373046568,-2000.0,0.000277,2]
[394200535,1763373046577,-300.0,0.00027717,7]
[394200536,1763373046586,-190.41546811,0.00028033,2]
[394200537,1763373046596,-500.0,0.00028033,2]
[394200538,1763373046605,-1318.0,0.00028438,2]
[394200539,1763373046615,-3431.0,0.00028438,2]
[394200540,1763373046624,-359.127,0.00028438,2]
[394200541,1763373046633,-705.0,0.00028438,2]
[394200542,1763373046642,-6489.0,0.00028438,2]
[394200543,1763373046652,-1460.128,0.00028438,2]
[394200544,1763373046661,-1852.42,0.00028438,2]
[394200545,1763373046671,-500.0,0.00028438,2]
[394200546,1763373046681,-608.310814,0.00028672,3]
[394200547,1763373046690,-1120.80159675,0.00028672,3]
[394200548,1763373046751,-184.59249225,0.00028672,3]
[394200549,1763373046761,-551.940163,0.00028672,3]
[394200550,1763373046770,-1488.168829,0.00028672,3]
[394200551,1763373046779,-1298.7,0.00028762,120]
[394200552,1763373046790,-158.42,0.00028851,2]
[394200553,1763373046803,-350.78,0.00029,14]
[394200554,1763373046812,-500.0,0.00029523,11]
[394200555,1763373046822,-500.0,0.00029523,11]
[394200556,1763373046832,-500.0,0.00029523,11]
[394200557,1763373046842,-500.0,0.00029523,11]
[394200558,1763373046851,-500.0,0.00029523,11]
[394200559,1763373046861,-500.0,0.00029523,11]
[394200560,1763373046872,-500.0,0.00029523,11]
[394200561,1763373046881,-500.0,0.00029523,11]
[394200562,1763373046891,-717.86,0.00029674,30]
[394200563,1763373046899,-608.310814,0.0002972,2]
[394200564,1763373046909,-1305.394089,0.0002972,2]
[394200565,1763373046919,-551.940163,0.0002972,2]
[394200566,1763373046928,-1488.168829,0.0002972,2]
[394200567,1763373046937,-10000.01,0.0002973,2]
[394200568,1763373046947,-12416.59,0.00029821,2]
[394200569,1763373046956,-608.310814,0.0003,5]
[394200570,1763373046965,-1305.394089,0.0003,5]
[394200572,1763373046974,-551.940163,0.0003,5]
[394200574,1763373046984,-1488.168829,0.0003,5]
[394200576,1763373046993,-202.57738895,0.0003,120]
[394200578,1763373047002,-151.0,0.0003,2]
[394200580,1763373047011,-300.0,0.0003001,2]
[394200583,1763373047021,-500.0,0.00030136,2]
[394200585,1763373047030,-500.0,0.00030383,15]
[394200586,1763373047039,-500.0,0.0003041,2]
[394200587,1763373047048,-500.0,0.00030657,15]
[394200588,1763373047057,-153.0,0.0003067,2]
[394200589,1763373047066,-153.0,0.0003067,2]
[394200590,1763373047075,-153.0,0.0003067,2]
[394200591,1763373047084,-153.0,0.00030674,2]
[394200592,1763373047093,-153.0,0.00030674,2]
[394200593,1763373047103,-153.0,0.00030674,2]
[394200594,1763373047112,-153.0,0.00030674,2]
[394200595,1763373047121,-500.0,0.00030684,2]
[394200596,1763373047130,-153.0,0.00030702,2]
[394200597,1763373047139,-153.0,0.00030702,2]
[394200598,1763373047148,-153.0,0.00030702,2]
[394200599,1763373047157,-153.0,0.00030705,2]
[394200600,1763373047166,-153.0,0.00030705,2]
[394200601,1763373047175,-153.0,0.00030705,2]
[394200602,1763373047184,-153.0,0.00030705,2]
[394200603,1763373047193,-153.0,0.00030733,2]
[394200604,1763373047202,-153.0,0.00030733,2]
[394200605,1763373047212,-153.0,0.00030733,2]
[394200606,1763373047221,-153.0,0.00030737,2]
[394200607,1763373047230,-153.0,0.00030737,2]
[394200608,1763373047240,-153.0,0.00030737,2]
[394200609,1763373047249,-153.0,0.00030737,2]
[394200610,1763373047258,-153.0,0.00030765,2]
[394200611,1763373047267,-153.0,0.00030765,2]
[394200612,1763373047277,-153.0,0.00030765,2]
[394200613,1763373047286,-153.0,0.00030765,2]
[394200614,1763373047295,-153.0,0.00030765,2]
[394200615,1763373047303,-153.0,0.00030765,2]
[394200616,1763373047313,-153.0,0.00030769,2]
[394200617,1763373047321,-153.0,0.00030769,2]
[394200618,1763373047330,-153.0,0.00030769,2]
[394200619,1763373047339,-153.0,0.00030769,2]
[394200620,1763373047348,-153.0,0.000308,2]
[394200621,1763373047357,-153.0,0.000308,2]
[394200622,1763373047366,-153.0,0.000308,2]
[394200623,1763373047375,-153.0,0.000308,2]
[394200624,1763373047384,-153.0,0.00030827,2]
[394200625,1763373047393,-153.0,0.00030827,2]
[394200626,1763373047402,-153.0,0.00030827,2]
[394200627,1763373047411,-153.0,0.00030831,2]
[394200628,1763373047420,-153.0,0.00030831,2]
[394200629,1763373047429,-153.0,0.00030831,2]
[394200630,1763373047438,-153.0,0.00030831,2]
[394200631,1763373047447,-608.310814,0.00030875,5]
[394200632,1763373047457,-1305.394089,0.00030875,5]
[394200633,1763373047466,-551.940163,0.00030875,5]
[394200634,1763373047475,-1488.168829,0.00030875,5]
[394200635,1763373047484,-200.0,0.00030901,2]
[394200636,1763373047494,-500.0,0.00030931,15]
[394200637,1763373047503,-500.0,0.00030958,2]
[394200638,1763373047513,-500.0,0.00031205,15]
[394200639,1763373047523,-500.0,0.00031232,2]
[394200640,1763373047532,-2108.14318343,0.00031236,2]
[394200641,1763373047542,-278.04,0.00031244,2]
[394200642,1763373047551,-5922.48,0.00031284,2]
[394200643,1763373047560,-58260.92314524,0.00031336,2]
[394200644,1763373047569,-150.0,0.00031336,2]
[394200645,1763373047578,-2000.0,0.000314,2]
[394200646,1763373047587,-1318.0,0.00031438,2]
[394200647,1763373047597,-3431.0,0.00031438,2]
[394200648,1763373047606,-705.0,0.00031438,2]
[394200649,1763373047615,-6489.0,0.00031438,2]
[394200650,1763373047624,-500.0,0.00031479,15]
[394200651,1763373047633,-608.310814,0.000315,30]
[394200652,1763373047643,-1305.394089,0.000315,30]
[394200653,1763373047652,-551.940163,0.000315,30]
[394200654,1763373047661,-1488.168829,0.000315,30]
[394200655,1763373047670,-500.0,0.00031506,2]
[394200656,1763373047679,-15529.69,0.00031526,2]
[394200657,1763373047688,-608.310814,0.0003175,5]
[394200658,1763373047697,-1305.394089,0.0003175,5]
[394200659,1763373047706,-551.940163,0.0003175,5]
[394200660,1763373047716,-1488.168829,0.0003175,5]
[394200661,1763373047725,-500.0,0.00031753,15]
[394200662,1763373047735,-500.0,0.0003178,2]
[394200663,1763373047743,-275.69007142,0.00032,120]
[394200664,1763373047754,-500.0,0.00032027,15]
[394200665,1763373047763,-500.0,0.00032054,2]
[394200666,1763373047773,-166.66,0.00032174,2]
[394200667,1763373047783,-500.0,0.00032301,15]
[394200668,1763373047795,-500.0,0.00032328,2]
[394200669,1763373047805,-2108.14318337,0.00032356,2]
[394200670,1763373047815,-278.04,0.00032416,2]
[394200671,1763373047824,-608.310814,0.00032445,3]
[394200672,1763373047834,-1305.394089,0.00032445,3]
[394200673,1763373047844,-551.940163,0.00032445,3]
[394200674,1763373047853,-1488.168829,0.00032445,3]
[394200675,1763373047863,-500.0,0.00032575,15]
[394200676,1763373047873,-500.0,0.00032602,2]
[394200677,1763373047882,-608.310814,0.00032625,5]
[394200678,1763373047891,-1305.394089,0.00032625,5]
[394200679,1763373047900,-551.940163,0.00032625,5]
[394200680,1763373047910,-151.630852,0.00032625,5]
[394200681,1763373047920,-1488.168829,0.00032625,5]
[394200682,1763373047929,-608.310814,0.00032688,30]
[394200683,1763373047938,-1305.394089,0.00032688,30]
[394200684,1763373047948,-551.940163,0.00032688,30]
[394200685,1763373047957,-1488.168829,0.00032688,30]
[394200686,1763373047966,-500.0,0.00032849,15]
[394200687,1763373047975,-500.0,0.00032876,2]
[394200688,1763373047984,-275.69007142,0.00033,120]
[394200689,1763373047994,-500.0,0.00033123,30]
[394200690,1763373048009,-500.0,0.0003315,2]
[394200691,1763373048019,-358.95,0.00033165,2]
[394200692,1763373048028,-166.66,0.00033236,2]
[394200693,1763373048038,-1052.35,0.000333,30]
[394200694,1763373048047,-500.0,0.00033393,30]
[394200695,1763373048057,-500.0,0.00033397,30]
[394200696,1763373048068,-500.0,0.00033424,2]
[394200697,1763373048077,-2108.14318337,0.00033475,2]
[394200698,1763373048085,-608.310814,0.000335,5]
[394200699,1763373048095,-1305.394089,0.000335,5]
[394200700,1763373048104,-551.940163,0.000335,5]
[394200701,1763373048113,-151.630852,0.000335,5]
[394200702,1763373048122,-1488.168829,0.000335,5]
[394200703,1763373048131,-278.04,0.00033588,2]
[394200704,1763373048140,-500.0,0.00033667,30]
[394200705,1763373048149,-510.17,0.00033671,30]
[394200706,1763373048159,-500.0,0.00033698,2]
[394200707,1763373048169,-1000.0,0.00033706,2]
[394200708,1763373048179,-608.310814,0.00033875,30]
[394200709,1763373048188,-1305.394089,0.00033875,30]
[394200710,1763373048197,-551.940163,0.00033875,30]
[394200711,1763373048207,-1488.168829,0.00033875,30]
[394200712,1763373048216,-951.5,0.00033891,30]
[394200713,1763373048226,-275.69007142,0.000339,120]
[394200714,1763373048234,-500.0,0.00033941,30]
[394200715,1763373048244,-796.382,0.00033959,37]
[394200716,1763373048253,-172.906,0.00033959,37]
[394200717,1763373048263,-500.0,0.00033972,2]
[394200718,1763373048272,-500.0,0.00034215,30]
[394200719,1763373048281,-500.0,0.00034246,2]
[394200720,1763373048291,-152.0,0.00034285,3]
[394200721,1763373048300,-166.66,0.00034298,2]
[394200722,1763373048310,-488.0,0.00034437,7]
[394200723,1763373048319,-500.0,0.00034437,2]
[394200724,1763373048329,-500.0,0.00034437,2]
[394200725,1763373048338,-1318.0,0.00034438,2]
[394200726,1763373048348,-576.17080452,0.00034438,2]
[394200743,1763373369830,250.0,0.00017,2]